fUSD/lending_fUSD_20250514
["ID","MTS","AMOUNT","RATE_DAILY","PERIOD"]
[361018869,1747206648691,-2108.67,0.00010958,2]
[361018870,1747206648701,-400.0,0.00010958,2]
[361018871,1747206648711,-400.0,0.00010958,2]
[361018872,1747206648721,-5734.62,0.00010958,2]
[361018873,1747206648731,-400.0,0.00010958,2]
[361018874,1747206648740,-400.0,0.00010958,2]
[361018875,1747206648750,-424.67,0.00010958,2]
[361018876,1747206648759,-403.11483092,0.00010958,2]
[361018877,1747206648769,-400.0,0.00010958,2]
[361018878,1747206648778,-400.22189337,0.00010958,2]
[361018879,1747206648787,-400.0,0.00010958,2]
[361018880,1747206648797,-400.0,0.00010958,2]
[361018881,1747206648806,-400.0,0.00010958,2]
[361018882,1747206648816,-999.5,0.00010958,2]
[361018883,1747206648825,-400.0,0.00010958,2]
[361018884,1747206648835,-848.71,0.00010958,2]
[361018885,1747206648846,-400.0,0.00010958,2]
[361018886,1747206648856,-1265.55,0.00010958,2]
[361018887,1747206648866,-400.0,0.00010958,2]
[361018888,1747206648877,-400.0,0.00010958,2]
[361018889,1747206648887,-400.0,0.00010958,2]
[361018890,1747206648898,-400.0,0.00010958,2]
[361018891,1747206648908,-608.01,0.00010958,2]
[361018892,1747206648918,-400.0,0.00010958,2]
[361018893,1747206648928,-1490.42,0.00010958,2]
[361018894,1747206648938,-1018.01,0.00010958,2]
[361018895,1747206648947,-847.84,0.00010958,2]
[361018896,1747206648957,-442.81,0.00010958,2]
[361018897,1747206648966,-400.0,0.00010958,2]
[361018898,1747206648976,-400.0,0.00010958,2]
[361018899,1747206648985,-525.43,0.00010958,2]
[361018900,1747206648995,-400.0,0.00010958,2]
[361018901,1747206649004,-1736.64,0.00010958,2]
[361018902,1747206649014,-589.58,0.00010958,2]
[361018903,1747206649023,-400.0,0.00010958,2]
[361018904,1747206649033,-400.0,0.00010958,2]
[361018905,1747206649043,-400.0,0.00010958,2]
[361018906,1747206649053,-400.0,0.00010958,2]
[361018907,1747206649063,-423.45,0.00010958,2]
[361018908,1747206649073,-1996.67,0.00010958,2]
[361018909,1747206649083,-1218.47,0.00010958,2]
[361018910,1747206649093,-989.29,0.00010958,2]
[361018911,1747206649103,-889.37,0.00010958,2]
[361018912,1747206649113,-403.16314854,0.00010958,2]
[361018913,1747206649124,-400.0,0.00010958,2]
[361018914,1747206649134,-400.0,0.00010958,2]
[361018915,1747206649143,-400.0,0.00010958,2]
[361018916,1747206649154,-988.93,0.00010958,2]
[361018917,1747206649163,-1901.6,0.00010958,2]
[361018918,1747206649173,-575.42,0.00010958,2]
[361018919,1747206649183,-400.0,0.00010958,2]
[361018920,1747206649193,-770.93,0.00010958,2]
[361018921,1747206649203,-400.0,0.00010958,2]
[361018922,1747206649212,-400.0,0.00010958,2]
[361018923,1747206649222,-400.0,0.00010958,2]
[361018924,1747206649232,-400.0,0.00010958,2]
[361018925,1747206649242,-521.47,0.00010958,2]
[361018926,1747206649252,-888.01,0.00010958,2]
[361018927,1747206649265,-654.38,0.00010958,2]
[361018928,1747206649275,-493.22,0.00010958,2]
[361018929,1747206649285,-400.0,0.00010958,2]
[361018930,1747206649294,-418.84,0.00010958,2]
[361018931,1747206649305,-1314.0,0.00010958,2]
[361018932,1747206649314,-624.27,0.00010958,2]
[361018933,1747206649324,-1693.52,0.00010958,2]
[361018934,1747206649335,-400.0,0.00010958,2]
[361018935,1747206649346,-1127.84,0.00010958,2]
[361018936,1747206649356,-400.0,0.00010958,2]
[361018937,1747206649365,-1131.17,0.00010958,2]
[361018938,1747206649375,-1536.89,0.00010958,2]
[361018939,1747206649384,-429.55,0.00010958,2]
[361018940,1747206649394,-400.0,0.00010958,2]
[361018941,1747206649404,-881.74,0.00010958,2]
[361018942,1747206649414,-963.74,0.00010958,2]
[361018943,1747206649424,-400.0,0.00010958,2]
[361018944,1747206649433,-5040.09,0.00010958,2]
[361018945,1747206649443,-2420.14,0.00010958,2]
[361018946,1747206649452,-400.0,0.00010958,2]
[361018947,1747206649461,-400.0,0.00010958,2]
[361018948,1747206649470,-761.42,0.00010958,2]
[361018949,1747206649480,-400.0,0.00010958,2]
[361018950,1747206649490,-400.0,0.00010958,2]
[361018951,1747206649500,-400.0,0.00010958,2]
[361018952,1747206649510,-3064.03,0.00010958,2]
[361018953,1747206649520,-400.0,0.00010958,2]
[361018954,1747206649530,-400.0,0.00010958,2]
[361018955,1747206649540,-1586.38,0.00010958,2]
[361018956,1747206649550,-400.0,0.00010958,2]
[361018957,1747206649562,-670.02,0.00010958,2]
[361018958,1747206649572,-621.21,0.00010958,2]
[361018959,1747206649582,-400.0,0.00010958,2]
[361018960,1747206649591,-371.70073108,0.00010958,2]
[361018961,1747206649601,-522.44,0.00010958,2]
[361018962,1747206649611,-400.0,0.00010958,2]
[361018963,1747206649621,-400.0,0.00010958,2]
[361018964,1747206649630,-889.08,0.00010958,2]
[361018965,1747206649640,-409.48,0.00010958,2]
[361018966,1747206649650,-400.0,0.00010958,2]
[361018967,1747206649660,-400.0,0.00010958,2]
[361018968,1747206649671,-400.0,0.00010958,2]
[361018969,1747206649681,-400.0,0.00010958,2]
[361018970,1747206649691,-400.0,0.00010958,2]
[361018971,1747206649701,-400.0,0.00010958,2]
[361018972,1747206649711,-461.82,0.00010958,2]
[361018973,1747206649721,-1647.43,0.00010958,2]
[361018974,1747206649731,-400.0,0.00010958,2]
[361018975,1747206649740,-7245.06,0.00010958,2]
[361018976,1747206649750,-1330.32,0.00010958,2]
[361018977,1747206649760,-881.7,0.00010958,2]
[361018978,1747206649769,-400.0,0.00010958,2]
[361018979,1747206649780,-288.60313995,0.00010958,2]
[361018980,1747206649790,-3212.3,0.00010958,2]
[361018981,1747206649801,-400.0,0.00010958,2]
[361018982,1747206649811,-400.0,0.00010958,2]
[361018983,1747206649821,-575.2,0.00010958,2]
[361018984,1747206649831,-2383.8,0.00010958,2]
[361018985,1747206649841,-400.0,0.00010958,2]
[361018986,1747206649851,-1511.16,0.00010958,2]
[361018987,1747206649862,-872.65,0.00010958,2]
[361018988,1747206649872,-400.0,0.00010958,2]
[361018989,1747206649881,-289.02207712,0.00010958,2]
[361018990,1747206649891,-500.0,0.00010958,2]
[361018991,1747206649902,-1160.4,0.00010958,2]
[361018992,1747206649911,-593.63,0.00010958,2]
[361018993,1747206649921,-2156.24,0.00010958,2]
[361018994,1747206649931,-400.0,0.00010958,2]
[361018995,1747206649941,-400.0,0.00010958,2]
[361018996,1747206649951,-405.8150061,0.00010958,2]
[361018997,1747206649961,-2234.08,0.00010958,2]
[361018998,1747206649971,-5671.04294303,0.00010958,2]
[361018999,1747206650023,-596.86705697,0.00010958,2]
[361019000,1747206650032,-74.73468657,0.00010958,2]
[361019001,1747206650051,-325.26531343,0.00010958,2]
[361019002,1747206650061,-269.70316,0.00010958,2]
[361019003,1747206650524,-135.44229977,0.00010958,2]
[361019004,1747206650624,-1087.15,0.00010958,2]
[361019005,1747206650633,-172.43466528,0.00010958,2]
[361019006,1747206650643,-480.13533472,0.00010958,2]
[361019007,1747206650653,-418.64,0.00010958,2]
[361019008,1747206650662,-212.93481223,0.00010958,2]
[361019009,1747206650671,-400.0,0.00010958,2]
[361019010,1747206650680,-545.6,0.00010958,2]
[361019011,1747206650689,-400.0,0.00010958,2]
[361019012,1747206650698,-1543.56,0.00010958,2]
[361019013,1747206650707,-400.0,0.00010958,2]
[361019014,1747206650716,-676.91,0.00010958,2]
[361019015,1747206650727,-768.94,0.00010958,2]
[361019016,1747206650736,-535.71,0.00010958,2]
[361019017,1747206650745,-400.0,0.00010958,2]
[361019018,1747206650754,-461.16985305,0.00010958,2]
[361019019,1747206651226,-533.38014695,0.00010958,2]
[361019020,1747206651236,-400.0,0.00010958,2]
[361019021,1747206651246,-400.0,0.00010958,2]
[361019022,1747206651257,-400.0,0.00010958,2]
[361019023,1747206651270,-1817.38,0.00010958,2]
[361019024,1747206651279,-864.24,0.00010958,2]
[361019025,1747206651289,-400.0,0.00010958,2]
[361019026,1747206651299,-1356.01,0.00010958,2]
[361019027,1747206651309,-400.0,0.00010958,2]
[361019028,1747206651319,-400.0,0.00010958,2]
[361019029,1747206651328,-400.0,0.00010958,2]
[361019030,1747206651339,-409.50628052,0.00010958,2]
[361019031,1747206651349,-2452.24,0.00010958,2]
[361019032,1747206651360,-400.0,0.00010958,2]
[361019033,1747206651370,-1561.0,0.00010958,2]
[361019034,1747206651379,-453.64,0.00010958,2]
[361019035,1747206651389,-4163.65,0.00010958,2]
[361019036,1747206651399,-648.67,0.00010958,2]
[361019037,1747206651410,-1414.19,0.00010958,2]
[361019038,1747206651419,-3648.97,0.00010958,2]
[361019039,1747206651430,-718.94,0.00010958,2]
[361019040,1747206651439,-528.55,0.00010958,2]
[361019041,1747206651451,-400.00540297,0.00010958,2]
[361019042,1747206651460,-400.0,0.00010958,2]
[361019043,1747206651471,-400.0,0.00010958,2]
[361019044,1747206651481,-400.0,0.00010958,2]
[361019045,1747206651491,-400.0,0.00010958,2]
[361019046,1747206651502,-400.0,0.00010958,2]
[361019047,1747206651515,-400.0,0.00010958,2]
[361019048,1747206651525,-400.0,0.00010958,2]
[361019049,1747206651537,-408.4,0.00010958,2]
[361019050,1747206651548,-400.0,0.00010958,2]
[361019051,1747206651558,-2155.05,0.00010958,2]
[361019052,1747206651567,-400.39573274,0.00010958,2]
[361019053,1747206651578,-417.55,0.00010958,2]
[361019054,1747206651589,-616.99,0.00010958,2]
[361019055,1747206651602,-752.26,0.00010958,2]
[361019056,1747206651613,-150.0,0.00010959,2]
[361019057,1747206651623,-500.0,0.00010959,2]
[361019058,1747206651633,-500.0,0.00010959,2]
[361019059,1747206651644,-500.0,0.00010959,2]
[361019060,1747206651654,-500.0,0.00010959,2]
[361019061,1747206651664,-500.0,0.00010959,2]
[361019062,1747206651674,-500.0,0.00010959,2]
[361019063,1747206651684,-500.0,0.00010959,2]
[361019064,1747206651694,-500.0,0.00010959,2]
[361019065,1747206651704,-500.0,0.00010959,2]
[361019066,1747206651714,-472.03634663,0.00010959,2]
[361019067,1747206651724,-500.0,0.00010973,2]
[361019068,1747206651734,-500.0,0.00010973,2]
[361019069,1747206651743,-500.0,0.00010973,2]
[361019070,1747206651752,-500.0,0.00010973,2]
[361019071,1747206651761,-500.0,0.00010973,2]
[361019072,1747206651770,-500.0,0.00010973,2]
[361019073,1747206651780,-500.0,0.00010992,2]
[361019074,1747206651789,-500.0,0.00010997,2]
[361019075,1747206651798,-735.0,0.00010997,2]
[361019076,1747206651808,-890.99,0.00010999,2]
[361019077,1747206651818,-890.99,0.00010999,2]
[361019078,1747206651827,-890.99,0.00010999,2]
[361019079,1747206651837,-890.99,0.00010999,2]
[361019080,1747206651847,-890.99,0.00010999,2]
[361019081,1747206651857,-890.99,0.00010999,2]
[361019082,1747206651867,-890.99,0.00010999,2]
[361019083,1747206651877,-890.99,0.00010999,2]
[361019084,1747206651887,-890.99,0.00010999,2]
[361019085,1747206651898,-890.99,0.00010999,2]
[361019086,1747206651908,-890.99,0.00010999,2]
[361019087,1747206651918,-890.99,0.00010999,2]
[361019088,1747206651929,-890.99,0.00010999,2]
[361019089,1747206651940,-603.59790595,0.00010999,2]
[361019090,1747206651950,-735.0,0.00010999,2]
[361019091,1747206651960,-735.0,0.00010999,2]
[361019092,1747206651970,-735.0,0.00010999,2]
[361019093,1747206651980,-735.0,0.00010999,2]
[361019094,1747206651990,-735.0,0.00010999,2]
[361019095,1747206652000,-735.0,0.00010999,2]
[361019096,1747206652009,-735.0,0.00010999,2]
[361019097,1747206652019,-735.0,0.00010999,2]
[361019098,1747206652030,-735.0,0.00010999,2]
[361019099,1747206652039,-735.0,0.00010999,2]
[361019100,1747206652049,-735.0,0.00010999,2]
[361019101,1747206652059,-735.0,0.00010999,2]
[361019102,1747206652069,-735.0,0.00010999,2]
[361019103,1747206652079,-150.0,0.00011,2]
[361019104,1747206652089,-569.94228127,0.00011,2]
[361019105,1747206652098,-890.99,0.00011013,2]
[361019106,1747206652107,-24554.60740097,0.00011018,2]
[361019107,1747206652116,-931.0,0.00011044,2]
[361019108,1747206652125,-798.0,0.00011044,2]
[361019109,1747206652134,-2231.591,0.00011044,2]
[361019110,1747206652143,-1008.524,0.00011044,2]
[361019111,1747206652154,-890.99,0.00011098,2]
[361019112,1747206652164,-735.0,0.00011098,2]
[361019113,1747206652173,-735.0,0.00011098,2]
[361019114,1747206652183,-735.0,0.00011098,2]
[361019115,1747206652192,-735.0,0.00011098,2]
[361019116,1747206652202,-735.0,0.00011098,2]
[361019117,1747206652212,-735.0,0.00011098,2]
[361019118,1747206652222,-735.0,0.00011098,2]
[361019119,1747206652232,-735.06077612,0.00011098,2]
[361019120,1747206652242,-16434.77272678,0.00011099,2]
[361019121,1747206652278,-10502.87120648,0.00011099,2]
[361019122,1747206652288,-26937.64393319,0.00011099,2]
[361019123,1747206652299,-250.0,0.00011136,2]
[361019124,1747206652310,-151.0,0.00011153,2]
[361019125,1747206652320,-151.0,0.00011153,2]
[361019126,1747206652330,-151.0,0.00011154,2]
[361019127,1747206652342,-151.0,0.00011154,2]
[361019128,1747206652353,-890.99,0.00011223,2]
[361019129,1747206652364,-26937.64393319,0.00011223,2]
[361019130,1747206652374,-506.47920963,0.00011231,2]
[361019131,1747206652384,-401.75386184,0.00011231,2]
[361019132,1747206652394,-890.99,0.00011231,2]
[361019133,1747206652405,-890.99,0.00011231,2]
[361019134,1747206652414,-890.99,0.00011231,2]
[361019135,1747206652424,-890.99,0.00011231,2]
[361019136,1747206652434,-891.12593358,0.00011231,2]
[361019137,1747206652444,-560.17839271,0.00011231,2]
[361019138,1747206652454,-500.0,0.00011231,2]
[361019139,1747206652464,-765.0,0.00011232,2]
[361019140,1747206652474,-151.0,0.00011232,2]
[361019141,1747206652484,-151.0,0.00011232,2]
[361019142,1747206652494,-151.689181,0.00011232,2]
[361019143,1747206652503,-400.0,0.00011232,2]
[361019144,1747206652513,-402.94204606,0.00011232,2]
[361019145,1747206652523,-401.86336123,0.00011232,2]
[361019146,1747206652533,-400.0,0.00011232,2]
[361019147,1747206652542,-400.0,0.00011232,2]
[361019148,1747206652552,-400.0,0.00011232,2]
[361019149,1747206652562,-400.0,0.00011232,2]
[361019150,1747206652572,-400.0,0.00011232,2]
[361019151,1747206652582,-400.0,0.00011232,2]
[361019152,1747206652592,-451.99959892,0.00011232,2]
[361019153,1747206652602,-326.93292582,0.00011232,2]
[361019154,1747206652612,-400.0,0.00011232,2]
[361019155,1747206652623,-400.0,0.00011232,2]
[361019156,1747206652632,-601.16,0.00011232,2]
[361019157,1747206652642,-590.16,0.00011232,2]
[361019158,1747206652653,-400.0,0.00011232,2]
[361019159,1747206652663,-313.38565912,0.00011232,2]
[361019160,1747206652674,-569.56,0.00011232,2]
[361019161,1747206652684,-400.0,0.00011232,2]
[361019162,1747206652694,-459.7,0.00011232,2]
[361019163,1747206652704,-400.0,0.00011232,2]
[361019164,1747206652714,-668.0,0.00011232,2]
[361019165,1747206652723,-847.2,0.00011232,2]
[361019166,1747206652734,-400.0,0.00011232,2]
[361019167,1747206652748,-219.7435134,0.00011232,2]
[361019168,1747206652758,-400.0,0.00011232,2]
[361019169,1747206652767,-400.0,0.00011232,2]
[361019170,1747206652777,-400.0,0.00011232,2]
[361019171,1747206652787,-402.17534372,0.00011232,2]
[361019172,1747206652798,-400.0,0.00011232,2]
[361019173,1747206652808,-400.0,0.00011232,2]
[361019174,1747206652818,-400.0,0.00011232,2]
[361019175,1747206652829,-400.0,0.00011232,2]
[361019176,1747206652838,-400.0,0.00011232,2]
[361019177,1747206652848,-400.0,0.00011232,2]
[361019178,1747206652858,-658.86,0.00011232,2]
[361019179,1747206652867,-400.0,0.00011232,2]
[361019180,1747206652877,-164.89469221,0.00011232,2]
[361019181,1747206652886,-400.0,0.00011232,2]
[361019182,1747206652895,-400.0,0.00011232,2]
[361019183,1747206652906,-400.0,0.00011232,2]
[361019184,1747206652917,-400.0,0.00011232,2]
[361019185,1747206652926,-400.0,0.00011232,2]
[361019186,1747206652936,-400.0,0.00011232,2]
[361019187,1747206652946,-767.64,0.00011232,2]
[361019188,1747206652956,-400.0,0.00011232,2]
[361019189,1747206652966,-400.0,0.00011232,2]
[361019190,1747206652975,-400.0,0.00011232,2]
[361019191,1747206652986,-400.0,0.00011232,2]
[361019192,1747206652995,-400.0,0.00011232,2]
[361019193,1747206653005,-400.0,0.00011232,2]
[361019194,1747206653014,-400.0,0.00011232,2]
[361019195,1747206653024,-400.0,0.00011232,2]
[361019196,1747206653033,-400.0,0.00011232,2]
[361019197,1747206653043,-400.0,0.00011232,2]
[361019198,1747206653053,-400.0,0.00011232,2]
[361019199,1747206653062,-400.0,0.00011232,2]
[361019200,1747206653072,-452.39400567,0.00011232,2]
[361019201,1747206653081,-461.56,0.00011232,2]
[361019202,1747206653091,-400.0,0.00011232,2]
[361019203,1747206653100,-400.0,0.00011232,2]
[361019204,1747206653110,-400.0,0.00011232,2]
[361019205,1747206653120,-400.0,0.00011232,2]
[361019206,1747206653130,-400.0,0.00011232,2]
[361019207,1747206653140,-400.0,0.00011232,2]
[361019208,1747206653150,-400.0,0.00011232,2]
[361019209,1747206653160,-517.87,0.00011232,2]
[361019210,1747206653171,-323.03,0.00011232,2]
[361019211,1747206653180,-400.0,0.00011232,2]
[361019212,1747206653190,-400.0,0.00011232,2]
[361019213,1747206653200,-400.0,0.00011232,2]
[361019214,1747206653210,-340.14,0.00011232,2]
[361019215,1747206653220,-400.0,0.00011232,2]
[361019216,1747206653231,-400.0,0.00011232,2]
[361019217,1747206653241,-400.0,0.00011232,2]
[361019218,1747206653250,-400.0,0.00011232,2]
[361019219,1747206653264,-400.0,0.00011232,2]
[361019220,1747206653274,-1485.43,0.00011232,2]
[361019221,1747206653283,-842.57,0.00011232,2]
[361019222,1747206653294,-358.41609132,0.00011232,2]
[361019223,1747206653305,-174.547771,0.00011232,2]
[361019224,1747206653315,-1808.756094,0.00011232,2]
[361019225,1747206653325,-400.0,0.00011232,2]
[361019226,1747206653336,-400.0,0.00011232,2]
[361019227,1747206653347,-400.0,0.00011232,2]
[361019228,1747206653356,-400.0,0.00011232,2]
[361019229,1747206653366,-400.0,0.00011232,2]
[361019230,1747206653376,-628.71,0.00011232,2]
[361019231,1747206653386,-1058.31,0.00011232,2]
[361019232,1747206653396,-400.0,0.00011232,2]
[361019233,1747206653407,-400.0,0.00011232,2]
[361019234,1747206653416,-518.6,0.00011232,2]
[361019235,1747206653426,-400.0,0.00011232,2]
[361019236,1747206653437,-3813.596718,0.00011232,2]
[361019237,1747206653448,-400.0,0.00011232,2]
[361019238,1747206653458,-400.0,0.00011232,2]
[361019239,1747206653468,-414.21,0.00011232,2]
[361019240,1747206653478,-400.0,0.00011232,2]
[361019241,1747206653488,-2782.03,0.00011232,2]
[361019242,1747206653498,-400.0,0.00011232,2]
[361019243,1747206653510,-1098.75,0.00011232,2]
[361019244,1747206653521,-400.0,0.00011232,2]
[361019245,1747206653532,-400.0,0.00011232,2]
[361019246,1747206653542,-400.0,0.00011232,2]
[361019247,1747206653554,-400.0,0.00011232,2]
[361019248,1747206653564,-400.0,0.00011232,2]
[361019249,1747206653574,-400.0,0.00011232,2]
[361019250,1747206653583,-400.0,0.00011232,2]
[361019251,1747206653593,-400.0,0.00011232,2]
[361019252,1747206653603,-400.0,0.00011232,2]
[361019253,1747206653613,-459.74,0.00011232,2]
[361019254,1747206653622,-400.0,0.00011232,2]
[361019255,1747206653632,-400.0,0.00011232,2]
[361019256,1747206653642,-2382.22,0.00011232,2]
[361019257,1747206653652,-400.0,0.00011232,2]
[361019258,1747206653662,-552.88,0.00011232,2]
[361019259,1747206653671,-485.79,0.00011232,2]
[361019260,1747206653683,-593.33,0.00011232,2]
[361019261,1747206653694,-400.0,0.00011232,2]
[361019262,1747206653703,-400.0,0.00011232,2]
[361019263,1747206653715,-400.0,0.00011232,2]
[361019264,1747206653725,-400.0,0.00011232,2]
[361019265,1747206653735,-400.0,0.00011232,2]
[361019266,1747206653745,-400.0,0.00011232,2]
[361019267,1747206653756,-400.0,0.00011232,2]
[361019268,1747206653991,-409.38,0.00011232,2]
[361019269,1747206654000,-400.0,0.00011232,2]
[361019270,1747206654010,-714.07,0.00011232,2]
[361019271,1747206654020,-505.3,0.00011232,2]
[361019272,1747206654030,-400.0,0.00011232,2]
[361019273,1747206654040,-1155.36,0.00011232,2]
[361019274,1747206654050,-400.0,0.00011232,2]
[361019275,1747206654059,-400.0,0.00011232,2]
[361019276,1747206654069,-558.68,0.00011232,2]
[361019277,1747206654079,-400.0,0.00011232,2]
[361019278,1747206654089,-408.88,0.00011232,2]
[361019279,1747206654098,-400.0,0.00011232,2]
[361019280,1747206654108,-729.7,0.00011232,2]
[361019281,1747206654118,-1059.2,0.00011232,2]
[361019282,1747206654128,-400.0,0.00011232,2]
[361019283,1747206654138,-663.53,0.00011232,2]
[361019284,1747206654147,-400.0,0.00011232,2]
[361019285,1747206654158,-1319.91,0.00011232,2]
[361019286,1747206654167,-690.39,0.00011232,2]
[361019287,1747206654177,-449.59,0.00011232,2]
[361019288,1747206654186,-657.11,0.00011232,2]
[361019289,1747206654195,-400.0,0.00011232,2]
[361019290,1747206654205,-2536.44,0.00011232,2]
[361019291,1747206654215,-400.0,0.00011232,2]
[361019292,1747206654224,-400.0,0.00011232,2]
[361019293,1747206654233,-400.0,0.00011232,2]
[361019294,1747206654243,-400.0,0.00011232,2]
[361019295,1747206654253,-400.0,0.00011232,2]
[361019296,1747206654266,-400.0,0.00011232,2]
[361019297,1747206654275,-556.9,0.00011232,2]
[361019298,1747206654284,-1226.39,0.00011232,2]
[361019299,1747206654293,-490.55,0.00011232,2]
[361019300,1747206654303,-400.0,0.00011232,2]
[361019301,1747206654313,-416.36,0.00011232,2]
[361019302,1747206654323,-400.0,0.00011232,2]
[361019303,1747206654333,-400.0,0.00011232,2]
[361019304,1747206654344,-264.34728189,0.00011232,2]
[361019305,1747206654354,-400.0,0.00011232,2]
[361019306,1747206654363,-750.38,0.00011232,2]
[361019307,1747206654372,-400.0,0.00011232,2]
[361019308,1747206654382,-1436.26,0.00011232,2]
[361019309,1747206654391,-400.0,0.00011232,2]
[361019310,1747206654401,-178.63197574,0.00011232,2]
[361019311,1747206654410,-408.07937893,0.00011232,2]
[361019312,1747206654420,-400.0,0.00011232,2]
[361019313,1747206654431,-400.0,0.00011232,2]
[361019314,1747206654441,-400.0,0.00011232,2]
[361019315,1747206654451,-400.0,0.00011232,2]
[361019316,1747206654460,-522.1,0.00011232,2]
[361019317,1747206654469,-474.62,0.00011232,2]
[361019318,1747206654478,-400.0,0.00011232,2]
[361019319,1747206654488,-400.0,0.00011232,2]
[361019320,1747206654497,-400.0,0.00011232,2]
[361019321,1747206654507,-628.44,0.00011232,2]
[361019322,1747206654518,-1574.26,0.00011232,2]
[361019323,1747206654528,-878.71,0.00011232,2]
[361019324,1747206654537,-400.0,0.00011232,2]
[361019325,1747206654547,-446.95,0.00011232,2]
[361019326,1747206654557,-217.3514713,0.00011232,2]
[361019327,1747206654566,-402.16,0.00011232,2]
[361019328,1747206654576,-1333.87,0.00011232,2]
[361019329,1747206654586,-400.0,0.00011232,2]
[361019330,1747206654596,-400.0,0.00011232,2]
[361019331,1747206654605,-669.09,0.00011232,2]
[361019332,1747206654615,-782.19,0.00011232,2]
[361019333,1747206654624,-1165.88,0.00011232,2]
[361019334,1747206654634,-1555.28,0.00011232,2]
[361019335,1747206654643,-400.0,0.00011232,2]
[361019336,1747206654653,-874.97,0.00011232,2]
[361019337,1747206654663,-400.0,0.00011232,2]
[361019338,1747206654672,-1234.4,0.00011232,2]
[361019339,1747206654681,-401.46592425,0.00011232,2]
[361019340,1747206654690,-400.0,0.00011232,2]
[361019341,1747206654699,-1839.29,0.00011232,2]
[361019342,1747206654708,-400.0,0.00011232,2]
[361019343,1747206654719,-400.0,0.00011232,2]
[361019344,1747206654728,-400.0,0.00011232,2]
[361019345,1747206654738,-683.75,0.00011232,2]
[361019346,1747206654747,-2068.96,0.00011232,2]
[361019347,1747206654756,-400.0,0.00011232,2]
[361019348,1747206654767,-2149.71,0.00011232,2]
[361019349,1747206654776,-718.47,0.00011232,2]
[361019350,1747206654787,-485.67246089,0.00011232,2]
[361019351,1747206654796,-407.0047033,0.00011232,2]
[361019352,1747206654806,-400.0,0.00011232,2]
[361019353,1747206654817,-1053.32,0.00011232,2]
[361019354,1747206654827,-155.13829108,0.00011232,2]
[361019355,1747206654836,-634.45,0.00011232,2]
[361019356,1747206654846,-662.22,0.00011232,2]
[361019357,1747206654856,-400.0,0.00011232,2]
[361019358,1747206654866,-400.0,0.00011232,2]
[361019359,1747206654876,-434.4196111,0.00011232,2]
[361019360,1747206654886,-662.21,0.00011232,2]
[361019361,1747206654895,-400.0,0.00011232,2]
[361019362,1747206654906,-458.07,0.00011232,2]
[361019363,1747206654916,-210.69181493,0.00011232,2]
[361019364,1747206654926,-1985.62,0.00011232,2]
[361019365,1747206654936,-400.0,0.00011232,2]
[361019366,1747206654945,-400.0,0.00011232,2]
[361019367,1747206654956,-400.0,0.00011232,2]
[361019368,1747206654965,-2793.55,0.00011232,2]